bitfinex-derivatives/quotes_BTCF0:USTF0_20250806
["timestamp","ask_amount","ask_price","bid_price","bid_amount"]
[1754447409770,0.60076,113770.0,113760.0,0.81622468]
[1754447410471,0.7765606,113770.0,113760.0,0.81622468]
[1754447411479,1.1373606,113770.0,113760.0,0.81622468]
[1754447412279,1.65412918,113770.0,113760.0,0.81622468]
[1754447413280,0.96156,113770.0,113760.0,0.81622468]
[1754447415381,0.60076,113770.0,113760.0,0.81622468]
[1754447416182,0.60076,113770.0,113760.0,0.97452841]
[1754447416883,0.60076,113770.0,113760.0,1.49129699]
[1754447417882,0.60076,113770.0,113760.0,1.33299326]
[1754447419077,0.60076,113770.0,113760.0,0.81622468]
[1754447421281,0.3608,113780.0,113770.0,0.2944407]
[1754447421485,0.96132,113780.0,113770.0,0.81120928]
[1754447421789,3.0768,113790.0,113780.0,0.2948852]
[1754447421977,3.67732,113790.0,113780.0,0.88173899]
[1754447422287,3.31652,113790.0,113780.0,0.88173899]
[1754447423277,1.81652,113790.0,113780.0,0.88173899]
[1754447423579,1.82545767,113790.0,113780.0,0.88173899]
[1754447423774,3.32545767,113790.0,113780.0,0.88173899]
[1754447423980,2.10945767,113790.0,113780.0,0.88173899]
[1754447424179,2.10052,113790.0,113780.0,0.88173899]
[1754447424883,2.10152,113790.0,113780.0,0.88173899]
[1754447425585,2.10652,113790.0,113780.0,0.88173899]
[1754447426284,0.60652,113790.0,113780.0,0.88173899]
[1754447427386,0.60452,113790.0,113780.0,0.88373899]
[1754447428081,0.004,113790.0,113780.0,0.88373899]
[1754447428274,0.60444,113790.0,113780.0,0.88373899]
[1754447429188,0.60644,113790.0,113780.0,0.88173899]
[1754447430486,0.60444,113790.0,113780.0,0.88173899]
[1754447430689,0.60544,113790.0,113780.0,0.88173899]
[1754447431385,0.3608,113810.0,113800.0,0.2240743]
[1754447431592,0.3608,113810.0,113800.0,0.81162288]
[1754447431785,0.96116,113810.0,113800.0,0.81162288]
[1754447431986,2.46116,113810.0,113800.0,0.81162288]
[1754447432191,2.10036,113810.0,113800.0,0.81162288]
[1754447432491,2.10036,113810.0,113800.0,0.81262288]
[1754447433689,2.10935498,113810.0,113800.0,0.81462288]
[1754447433890,2.10036,113810.0,113800.0,0.2978543]
[1754447434082,2.10036,113810.0,113800.0,0.81462288]
[1754447434693,2.10036,113810.0,113800.0,0.2978543]
[1754447434991,2.10036,113810.0,113800.0,0.81462288]
[1754447435591,2.46116,113810.0,113800.0,0.2978543]
[1754447435791,2.6368988,113810.0,113800.0,0.81462288]
[1754447435983,3.15366738,113810.0,113800.0,0.81462288]
[1754447437986,3.16265003,113810.0,113800.0,0.81462288]
[1754447439187,3.16265003,113810.0,113800.0,0.1787543]
[1754447439586,3.16265003,113810.0,113800.0,0.2033843]
[1754447439986,3.16265003,113810.0,113800.0,0.1787542]
[1754447440584,1.66265003,113810.0,113800.0,0.1787542]
[1754447441089,1.66265003,113810.0,113800.0,0.1767542]
[1754447441285,1.66265003,113810.0,113800.0,0.1777542]
[1754447442188,2.13838603,113810.0,113800.0,0.003]
[1754447442393,2.65515461,113810.0,113800.0,0.003]
[1754447442691,2.13838603,113810.0,113800.0,0.003]
[1754447443288,2.65515461,113810.0,113800.0,0.001]
[1754447443490,2.13838603,113810.0,113800.0,0.001]
[1754447443879,2.65515461,113810.0,113800.0,0.001]
[1754447444084,2.13838603,113810.0,113800.0,0.001]
[1754447444486,2.65515461,113810.0,113800.0,0.001]
[1754447444688,0.1757696,113790.0,113780.0,0.33375271]
[1754447444892,3.0960194,113790.0,113780.0,0.35838271]
[1754447445691,3.0960194,113790.0,113780.0,0.33375271]
[1754447446184,3.4568194,113790.0,113780.0,0.33375271]
[1754447446380,3.4568194,113790.0,113780.0,0.24786111]
[1754447446986,3.9325874,113790.0,113780.0,0.1777759]
[1754447447592,3.9325874,113790.0,113780.0,0.1787759]
[1754447447892,3.9325874,113790.0,113780.0,0.003]
[1754447450593,3.9325874,113790.0,113780.0,0.002]
[1754447450792,3.9335874,113790.0,113780.0,0.002]
[1754447451797,0.1757852,113780.0,113770.0,0.3322662]
[1754447451991,0.995795,113780.0,113770.0,0.3322662]
[1754447452193,1.1368652,113780.0,113770.0,0.4275562]
[1754447452990,1.1368652,113780.0,113770.0,0.4295562]
[1754447453395,0.96128,113780.0,113770.0,0.888766]
[1754447453595,1.1370652,113780.0,113770.0,0.888766]
[1754447454800,1.1370652,113780.0,113770.0,0.4295562]
[1754447455900,1.1370652,113780.0,113770.0,0.4305562]
[1754447456502,0.96128,113780.0,113770.0,0.4305562]
[1754447456900,0.96128,113780.0,113770.0,0.889766]
[1754447458003,0.96128,113780.0,113770.0,0.888766]
[1754447458200,0.96128,113780.0,113770.0,0.4315562]
[1754447458405,1.1370651,113780.0,113770.0,0.4315562]
[1754447458997,1.5962749,113780.0,113770.0,0.4175962]
[1754447459199,1.5962749,113780.0,113770.0,0.3362662]
[1754447460001,1.5962749,113780.0,113770.0,0.2923161]
[1754447460403,1.5962749,113780.0,113770.0,0.2924061]
[1754447461093,1.5962749,113780.0,113770.0,0.3887461]
[1754447461297,1.5962749,113780.0,113770.0,0.3187361]
[1754447461506,1.5962749,113780.0,113770.0,0.2924061]
[1754447461804,1.5962749,113780.0,113770.0,0.2904061]
[1754447461999,1.5962749,113780.0,113770.0,0.2894061]
[1754447462401,1.5962749,113780.0,113770.0,0.2904061]
[1754447462602,1.5962749,113780.0,113770.0,0.3243161]
[1754447462904,1.5962749,113780.0,113770.0,0.2894061]
[1754447463606,1.5962749,113780.0,113770.0,0.2015059]
[1754447464707,1.5962749,113780.0,113770.0,0.2005059]
[1754447466808,1.9570749,113780.0,113770.0,0.2005059]
[1754447470702,1.9570749,113780.0,113770.0,0.2968459]
[1754447471206,1.9570749,113780.0,113770.0,0.2005059]
[1754447471801,1.9570749,113780.0,113770.0,0.2015059]
[1754447471997,1.9570749,113780.0,113770.0,0.2767059]
[1754447472403,1.9570749,113780.0,113770.0,0.2777059]
[1754447472604,1.4978651,113780.0,113770.0,0.2988459]
[1754447472803,1.9570749,113780.0,113770.0,0.2988459]
[1754447472999,1.9570749,113780.0,113770.0,0.2968459]
[1754447473303,1.9570749,113780.0,113770.0,0.2978459]
[1754447474813,1.9570749,113780.0,113770.0,0.2988459]
[1754447475104,1.9570749,113780.0,113770.0,0.2998459]
[1754447475812,1.9570749,113780.0,113770.0,0.2509759]
[1754447477513,1.9570749,113780.0,113770.0,0.2998459]
[1754447477712,1.9570749,113780.0,113770.0,0.2499759]
[1754447478114,1.9570749,113780.0,113770.0,0.2489759]
[1754447478410,1.9570749,113780.0,113770.0,0.2978459]
[1754447478608,1.9570749,113780.0,113770.0,0.2968459]
[1754447478805,1.9570749,113780.0,113770.0,0.2998459]
[1754447479208,1.9570749,113780.0,113770.0,0.2978459]
[1754447479505,1.9570749,113780.0,113770.0,0.2988459]
[1754447480712,1.9570749,113780.0,113770.0,0.2978459]
[1754447481015,1.9570749,113780.0,113770.0,0.2988459]
[1754447481601,1.9570749,113780.0,113770.0,0.2998459]
[1754447481913,1.9570749,113780.0,113770.0,0.2647959]
[1754447482107,1.9570749,113780.0,113770.0,0.2973559]
[1754447483011,1.4977851,113780.0,113770.0,0.2973559]
[1754447484217,0.8973851,113780.0,113770.0,0.2973559]
[1754447484420,1.4977851,113780.0,113770.0,0.2973559]
[1754447487815,1.322,113780.0,113770.0,0.7565657]
[1754447488011,0.9612,113780.0,113770.0,0.7565657]
[1754447488211,1.1369852,113780.0,113770.0,0.2973559]
[1754447489112,1.1369852,113780.0,113770.0,0.2983559]
[1754447489722,0.9612,113780.0,113770.0,0.2983559]
[1754447490522,0.9612,113780.0,113770.0,0.2993559]
[1754447490915,1.1369852,113780.0,113770.0,0.2993559]
[1754447491315,0.9612,113780.0,113770.0,0.2993559]
[1754447492812,0.3608,113780.0,113770.0,0.2993559]
[1754447493017,0.9612,113780.0,113770.0,0.2993559]
[1754447493621,0.3608,113780.0,113770.0,0.7585657]
[1754447493827,0.6004,113780.0,113770.0,0.91686943]
[1754447495029,2.0365699,113790.0,113780.0,0.2225952]
[1754447495326,2.4612,113790.0,113780.0,0.2917552]
[1754447495628,2.6369698,113790.0,113780.0,0.2917552]
[1754447495829,2.6369698,113790.0,113780.0,0.36126764]
[1754447496326,2.6369698,113790.0,113780.0,0.36226764]
[1754447496526,2.46116,113790.0,113780.0,0.36226764]
[1754447496927,2.6369297,113790.0,113780.0,0.36226764]
[1754447497533,2.6369297,113790.0,113780.0,0.36326764]
[1754447501037,2.46116,113790.0,113780.0,0.36326764]
[1754447502440,1.8608,113790.0,113780.0,0.36326764]
[1754447502641,1.8608,113790.0,113780.0,0.82247744]
[1754447503044,0.3608,113800.0,113790.0,0.2917398]
[1754447503249,0.96112,113800.0,113790.0,0.7509496]
[1754447503544,2.46112,113800.0,113790.0,0.7509496]
[1754447503745,2.10032,113800.0,113790.0,0.7509496]
[1754447508145,2.46112,113800.0,113790.0,0.7509496]
[1754447508351,2.6368742,113800.0,113790.0,0.2917398]
[1754447508549,2.6368742,113800.0,113790.0,0.7509496]
[1754447509051,2.6368742,113800.0,113790.0,0.1985498]
[1754447509852,2.6368742,113800.0,113790.0,0.2311098]
[1754447510452,2.6368742,113800.0,113790.0,0.2567298]
[1754447512954,2.6368742,113800.0,113790.0,0.1985498]
[1754447513252,2.6368742,113800.0,113790.0,0.1997298]
[1754447513253,3.096084,113800.0,113790.0,0.1997298]
[1754447516555,2.6368742,113800.0,113790.0,0.1997298]
[1754447516948,2.6368742,113800.0,113790.0,0.2486198]
[1754447517150,2.46104,113800.0,113790.0,0.7541596]
[1754447517458,2.6367942,113800.0,113790.0,0.7541596]
[1754447517652,2.6367942,113800.0,113790.0,0.2949498]
[1754447521350,0.7759942,113800.0,113790.0,0.2486198]
[1754447521658,1.1367942,113800.0,113790.0,0.2949498]
[1754447522461,1.1367942,113800.0,113790.0,0.1757698]
[1754447522655,1.1367942,113800.0,113790.0,0.1997298]
[1754447523759,0.96104,113800.0,113790.0,0.2949498]
[1754447523959,0.3608,113800.0,113790.0,0.2949498]
[1754447524156,0.96104,113800.0,113790.0,0.7541596]
[1754447524553,1.1367942,113800.0,113790.0,0.7541596]
[1754447525061,1.1367942,113800.0,113790.0,0.6589396]
[1754447525463,1.1367942,113800.0,113790.0,0.1997298]
[1754447525658,1.1367942,113800.0,113790.0,0.2091198]
[1754447525964,1.1367942,113800.0,113790.0,0.2949498]
[1754447530760,1.1367942,113800.0,113790.0,0.2806298]
[1754447531468,1.1367942,113800.0,113790.0,0.2255298]
[1754447531661,1.1367942,113800.0,113790.0,0.2161398]
[1754447532259,1.596004,113800.0,113790.0,0.1757698]
[1754447532465,0.96104,113800.0,113790.0,0.1997298]
[1754447532666,0.96104,113800.0,113790.0,0.7541596]
[1754447533469,1.1367942,113800.0,113790.0,0.2949498]
[1754447536362,1.1367942,113800.0,113790.0,0.2486198]
[1754447537768,1.1367942,113800.0,113790.0,0.2806298]
[1754447537958,1.1367942,113800.0,113790.0,0.1757698]
[1754447538160,1.1367942,113800.0,113790.0,0.1997298]
[1754447540170,1.6838871,113800.0,113790.0,0.1757697]
[1754447540369,0.1757697,113790.0,113780.0,0.28923104]
[1754447540570,0.9957795,113790.0,113780.0,0.28923104]
[1754447540770,2.4957795,113790.0,113780.0,0.28923104]
[1754447540969,2.4957795,113790.0,113780.0,0.31319104]
[1754447541868,2.4957795,113790.0,113780.0,0.28923104]
[1754447542571,2.4957795,113790.0,113780.0,0.31422104]
[1754447542771,2.4957795,113790.0,113780.0,0.31522104]
[1754447543273,2.4957795,113790.0,113780.0,0.28923104]
[1754447546777,2.4957795,113790.0,113780.0,0.31422104]
[1754447552378,2.0365697,113790.0,113780.0,0.31422104]
[1754447552580,2.4957795,113790.0,113780.0,0.31422104]
[1754447553279,2.4957795,113790.0,113780.0,0.33892104]
[1754447553483,2.4957795,113790.0,113780.0,0.40921104]
[1754447554382,2.4957795,113790.0,113780.0,0.35994104]
[1754447555481,2.4957795,113790.0,113780.0,0.40921104]
[1754447555482,2.4967795,113790.0,113780.0,0.40921104]
[1754447556579,2.4957795,113790.0,113780.0,0.40921104]
[1754447556782,2.4967795,113790.0,113780.0,0.40921104]
[1754447557280,2.4967795,113790.0,113780.0,0.39455104]
[1754447557480,2.4967795,113790.0,113780.0,0.33892104]
[1754447558582,2.4967795,113790.0,113780.0,0.37353104]
[1754447559579,2.4967795,113790.0,113780.0,0.33892104]
[1754447560785,2.0375697,113790.0,113780.0,0.33892104]
[1754447560986,2.4967795,113790.0,113780.0,0.33892104]
[1754447561177,2.4967795,113790.0,113780.0,0.38819104]
[1754447561482,2.4957795,113790.0,113780.0,0.38819104]
[1754447561677,2.4967795,113790.0,113780.0,0.40921104]
[1754447563287,2.6378497,113790.0,113780.0,0.40921104]
[1754447563478,3.0970595,113790.0,113780.0,0.40921104]
[1754447564188,3.0970595,113790.0,113780.0,0.39455104]
[1754447564387,3.0970595,113790.0,113780.0,0.31422104]
[1754447564583,3.0970595,113790.0,113770.0,0.2636868]
[1754447564795,0.1758006,113770.0,113760.0,0.49095353]
[1754447565087,1.65461595,113770.0,113760.0,0.49095353]
[1754447565890,1.65461595,113770.0,113760.0,0.3326498]
[1754447566390,1.65461595,113770.0,113760.0,0.3346498]
[1754447566591,1.65461595,113770.0,113760.0,0.2906963]
[1754447566789,1.59721773,113770.0,113760.0,0.177816]
[1754447567289,1.59721773,113770.0,113760.0,0.179816]
[1754447567490,1.59721773,113770.0,113760.0,0.02899]
[1754447567789,1.59721773,113770.0,113760.0,0.204806]
[1754447567983,1.59721773,113770.0,113760.0,0.202806]
[1754447568190,1.59721773,113770.0,113760.0,0.201806]
[1754447568788,1.59821773,113770.0,113760.0,0.200806]
[1754447572700,1.59821773,113770.0,113760.0,0.02499]
[1754447573998,1.59821773,113770.0,113760.0,0.2008061]
[1754447577903,1.59821773,113770.0,113760.0,0.02499]
[1754447578698,1.59821773,113770.0,113760.0,0.2008061]
[1754447580500,1.59821773,113770.0,113760.0,0.2934161]
[1754447587706,1.95901773,113770.0,113760.0,0.2934161]
[1754447588808,1.95901773,113770.0,113760.0,0.2795261]
[1754447589009,1.95901773,113770.0,113760.0,0.2472161]
[1754447589214,1.95901773,113770.0,113760.0,0.2008061]
[1754447589413,1.95901773,113770.0,113760.0,0.02499]
[1754447589815,0.175816,113760.0,113750.0,0.2880733]
[1754447590016,0.99599313,113760.0,113750.0,0.3203833]
[1754447590216,0.99599313,113760.0,113750.0,0.2880733]
[1754447590715,1.00477856,113760.0,113750.0,0.3595233]
[1754447590915,1.00477856,113760.0,113750.0,0.3806833]
[1754447591716,1.00477856,113760.0,113750.0,0.3816833]
[1754447594011,1.00477856,113760.0,113750.0,0.2451158]
[1754447594215,1.00477856,113760.0,113750.0,0.001]
[1754447594418,1.00477856,113760.0,113750.0,0.02534]
[1754447594605,1.00477856,113760.0,113750.0,0.02634]
[1754447596113,1.00477856,113760.0,113750.0,0.002]
[1754447597610,1.00477856,113760.0,113750.0,0.02634]
[1754447599923,1.46415569,113760.0,113750.0,0.002]
[1754447600718,1.28833969,113760.0,113720.0,0.56070128]
[1754447600919,0.99603953,113730.0,113720.0,0.58500218]
[1754447601223,1.59731953,113730.0,113720.0,0.58500218]
[1754447601411,1.59731953,113730.0,113720.0,0.60934218]
[1754447601817,0.3608,113730.0,113720.0,1.36871931]
[1754447602018,0.6245628,113750.0,113740.0,0.293497]
[1754447602210,0.7216,113750.0,113740.0,0.293497]
[1754447602410,1.32292,113750.0,113740.0,0.75287413]
[1754447602716,1.323,113750.0,113740.0,0.75287413]
[1754447603715,1.323,113750.0,113740.0,0.75387413]
[1754447603910,1.323,113750.0,113740.0,0.91217786]
[1754447604113,0.7216,113750.0,113740.0,0.91217786]
[1754447604313,1.323,113750.0,113740.0,0.91317786]
[1754447605112,0.6014,113750.0,113740.0,0.91317786]
[1754447605724,0.5805816,113760.0,113750.0,0.2934815]
[1754447606022,1.1819016,113760.0,113750.0,0.75285863]
[1754447606223,1.1819016,113760.0,113750.0,0.2934815]
[1754447606523,0.97084585,113760.0,113750.0,0.2934815]
[1754447606722,0.5366125,113770.0,113760.0,0.2934661]
[1754447606933,0.5366006,113770.0,113760.0,0.75284323]
[1754447607228,0.3608,113770.0,113760.0,0.75284323]
[1754447607419,0.96228,113770.0,113760.0,0.75284323]
[1754447608712,0.96328,113770.0,113760.0,0.75284323]
[1754447609416,0.96228,113770.0,113760.0,0.75384323]
[1754447609829,0.60148,113770.0,113760.0,0.75384323]
[1754447610023,0.96228,113770.0,113760.0,0.75384323]
[1754447610724,0.60148,113770.0,113760.0,0.75384323]
[1754447610921,0.96228,113770.0,113760.0,0.75384323]
[1754447611121,0.60148,113770.0,113760.0,0.75384323]
[1754447611321,0.96228,113770.0,113760.0,0.75384323]
[1754447611924,0.96228,113770.0,113760.0,0.75584323]
[1754447612430,1.1380806,113770.0,113760.0,0.75584323]
[1754447612628,1.1380806,113770.0,113760.0,0.2964661]
[1754447614216,1.1380806,113770.0,113760.0,0.2480461]
[1754447614422,1.1380806,113770.0,113760.0,0.2964661]
[1754447615324,1.1380806,113770.0,113760.0,0.2954661]
[1754447616730,1.1380806,113770.0,113760.0,0.2944661]
[1754447616930,0.7772806,113770.0,113760.0,0.2944661]
[1754447617241,1.1380806,113770.0,113760.0,0.2944661]
[1754447619130,1.59745773,113770.0,113760.0,0.1999761]
[1754447619728,1.59745773,113770.0,113760.0,0.1768161]
[1754447619929,1.59745773,113770.0,113760.0,0.1999761]
[1754447620432,1.59745773,113770.0,113760.0,0.001]
[1754447621229,0.1758316,113750.0,113740.0,0.2890377]
[1754447621536,1.95800873,113750.0,113740.0,0.1990063]
[1754447622534,1.95800873,113750.0,113740.0,0.2934963]
[1754447623029,1.95800873,113750.0,113740.0,0.2460763]
[1754447623229,1.95800873,113750.0,113740.0,0.2020063]
[1754447623930,1.95800873,113750.0,113740.0,0.2000063]
[1754447625540,1.95800873,113750.0,113740.0,0.1990063]
[1754447625736,1.95900873,113750.0,113740.0,0.1990063]
[1754447628538,1.95900873,113750.0,113740.0,0.2450763]
[1754447628740,1.4996316,113750.0,113740.0,0.2934963]
[1754447628942,1.95900873,113750.0,113740.0,0.2934963]
[1754447630138,1.95800873,113750.0,113740.0,0.2934963]
[1754447630742,1.95800873,113750.0,113740.0,0.2944963]
[1754447631542,1.4986316,113750.0,113740.0,0.2944963]
[1754447631739,0.8974316,113750.0,113740.0,0.2000063]
[1754447631938,1.4984316,113750.0,113740.0,0.2970263]
[1754447635545,1.32248,113750.0,113740.0,0.75640343]
[1754447636045,0.7216,113750.0,113740.0,0.75640343]
[1754447636245,1.32268,113750.0,113740.0,0.75640343]
[1754447636642,0.3608,113760.0,113750.0,0.2073515]
[1754447636843,0.96188,113760.0,113750.0,0.2960215]
[1754447637044,1.1376961,113760.0,113750.0,0.2960215]
[1754447639241,1.1387361,113760.0,113750.0,0.2960215]
[1754447639946,1.1377361,113760.0,113750.0,0.2960215]
[1754447640148,0.5366161,113760.0,113750.0,0.2960215]
[1754447640350,1.1378561,113760.0,113750.0,0.2970215]
[1754447641237,0.3608,113760.0,113750.0,0.75639863]
[1754447641441,0.96204,113760.0,113750.0,0.75639863]
[1754447641845,0.96204,113760.0,113750.0,1.23221463]
[1754447642050,0.60124,113760.0,113750.0,1.59301463]
[1754447642355,0.60124,113760.0,113750.0,1.60204981]
[1754447642651,0.60124,113760.0,113750.0,1.23221463]
[1754447642845,0.60124,113760.0,113750.0,1.23121463]
[1754447643047,0.60324,113760.0,113750.0,1.23121463]
[1754447643248,0.60724,113760.0,113750.0,1.23121463]
[1754447643448,0.60724,113760.0,113750.0,1.38951836]
[1754447643649,0.60724,113760.0,113750.0,1.21370236]
[1754447644048,0.60724,113760.0,113750.0,0.91370236]
[1754447644250,0.60724,113760.0,113750.0,0.75539863]
[1754447644849,0.60724,113760.0,113750.0,1.11619863]
[1754447645247,0.60724,113760.0,113750.0,0.91370236]
[1754447649657,0.96804,113760.0,113750.0,0.91370236]
[1754447649950,1.1438561,113760.0,113750.0,0.75539863]
[1754447650153,1.60323323,113760.0,113750.0,0.2960215]
[1754447650352,1.1438561,113760.0,113750.0,0.2960215]
[1754447653858,1.1438561,113760.0,113750.0,0.2470315]
[1754447654163,1.60323323,113760.0,113750.0,0.1990015]
[1754447654556,1.60323323,113760.0,113750.0,0.1758315]
[1754447655061,1.60323323,113760.0,113750.0,0.1990015]
[1754447656660,1.60323323,113760.0,113750.0,0.1758315]
[1754447657559,0.1758316,113750.0,113740.0,0.2637541]
[1754447657762,0.99600873,113750.0,113740.0,0.219795]
[1754447658368,0.99600873,113750.0,113740.0,0.242965]
[1754447658868,1.00100873,113750.0,113740.0,0.242965]
[1754447659262,1.00100873,113750.0,113740.0,0.1990066]
[1754447659466,0.175847,113740.0,113730.0,0.2869562]
[1754447659673,1.59698413,113740.0,113730.0,0.2869562]
[1754447659869,1.59698413,113740.0,113730.0,0.2637862]
[1754447660069,1.59698413,113740.0,113730.0,0.2869562]
[1754447660869,1.60098413,113740.0,113730.0,0.2869562]
[1754447661964,1.60398413,113740.0,113730.0,0.2869562]
[1754447663272,1.59798413,113740.0,113730.0,0.2929562]
[1754447663473,1.139607,113740.0,113730.0,0.2969562]
[1754447663772,1.59898413,113740.0,113730.0,0.2969562]
[1754447667875,1.59898413,113740.0,113730.0,0.3725662]
[1754447668074,1.59898413,113740.0,113730.0,0.3958462]
[1754447668576,1.139607,113740.0,113730.0,0.3958462]
[1754447668878,0.3628,113740.0,113730.0,0.85522333]
[1754447669076,0.96356,113740.0,113730.0,0.85522333]
[1754447671579,1.139407,113740.0,113730.0,0.85522333]
[1754447672173,0.96356,113740.0,113730.0,0.85522333]
[1754447672375,0.96384,113740.0,113730.0,0.85522333]
[1754447672681,0.96372,113740.0,113730.0,0.85522333]
[1754447673177,0.60292,113740.0,113730.0,0.85522333]
[1754447673480,0.603,113740.0,113730.0,1.21602333]
[1754447673980,0.60308,113740.0,113730.0,1.21602333]
[1754447674179,0.60308,113740.0,113730.0,1.85017506]
[1754447674769,0.002,113740.0,113730.0,1.85017506]
[1754447676081,0.002,113740.0,113730.0,1.55017506]
[1754447676579,0.002,113740.0,113730.0,1.37432706]
[1754447676773,0.002,113740.0,113730.0,1.55017506]
[1754447677370,0.002,113740.0,113730.0,1.85017506]
[1754447677574,0.3608,113760.0,113750.0,0.75721853]
[1754447677772,0.96192,113760.0,113750.0,0.2978414]
[1754447678680,0.60112,113760.0,113750.0,0.2978414]
[1754447678883,0.60112,113760.0,113750.0,0.2988414]
[1754447679084,1.1377361,113760.0,113750.0,0.2988414]
[1754447679280,0.3608,113770.0,113760.0,0.2978261]
[1754447679480,1.1376806,113770.0,113760.0,0.75720323]
[1754447679882,1.1376806,113770.0,113760.0,0.2978261]
[1754447681080,1.1376806,113770.0,113760.0,0.3028261]
[1754447681685,0.96188,113770.0,113760.0,0.3058261]
[1754447683685,0.96168,113770.0,113760.0,0.3058261]
[1754447684686,1.1374807,113770.0,113760.0,0.3058261]
[1754447685887,1.59685783,113770.0,113760.0,0.2069361]
[1754447686280,1.59669783,113770.0,113760.0,0.2069361]
[1754447686481,1.59669783,113770.0,113760.0,0.2910161]
[1754447686786,1.1373207,113770.0,113760.0,0.3058261]
[1754447688188,0.5366007,113770.0,113760.0,0.3058261]
[1754447688388,1.1374807,113770.0,113760.0,0.3058261]
[1754447689883,1.1375607,113770.0,113760.0,0.3058261]
[1754447690184,1.1375607,113770.0,113760.0,0.2910161]
[1754447690488,1.1375607,113770.0,113760.0,0.3058261]
[1754447690887,1.1375607,113770.0,113760.0,0.2069361]
[1754447691792,1.1375607,113770.0,113760.0,0.2896261]
[1754447692089,1.1375607,113770.0,113760.0,0.3044961]
[1754447692492,1.59693783,113770.0,113760.0,0.3044961]
[1754447692990,0.99597783,113770.0,113760.0,0.3044961]
[1754447693199,1.59697783,113770.0,113760.0,0.3044961]
[1754447693991,1.23617783,113770.0,113760.0,0.3044961]
[1754447694195,1.1376007,113770.0,113760.0,0.3044961]
[1754447694592,0.7768007,113770.0,113760.0,0.3044961]
[1754447694790,1.1376007,113770.0,113760.0,0.3044961]
[1754447697093,1.59697783,113770.0,113760.0,0.3044961]
[1754447698696,1.1376007,113770.0,113760.0,0.3044961]
[1754447699291,0.5366007,113770.0,113760.0,0.3044961]
[1754447699497,1.1374807,113770.0,113760.0,0.3044961]
[1754447703896,0.5366007,113770.0,113760.0,0.3044961]
[1754447704092,0.5366007,113770.0,113760.0,0.46279983]
[1754447704293,1.1372007,113770.0,113760.0,0.46279983]
[1754447705994,0.5366007,113770.0,113760.0,0.46279983]
[1754447706196,1.1372007,113770.0,113760.0,0.46279983]
[1754447706802,1.1372007,113770.0,113760.0,0.92217696]
[1754447707201,1.1372007,113770.0,113760.0,0.76387323]
[1754447708397,0.9614,113770.0,113760.0,0.76387323]
[1754447708601,0.3608,113770.0,113760.0,0.76387323]
[1754447708804,0.3608,113780.0,113770.0,0.2958506]
[1754447708993,0.9616,113780.0,113770.0,0.75522773]
[1754447709393,1.1373852,113780.0,113770.0,0.75522773]
[1754447709697,1.1373852,113780.0,113770.0,0.2958506]
[1754447709904,1.1373852,113780.0,113770.0,0.75522773]
[1754447710209,1.1373852,113780.0,113770.0,0.3008506]
[1754447711697,1.1373852,113780.0,113770.0,0.3028506]
[1754447711897,1.60540818,113780.0,113770.0,0.2216706]
[1754447712301,1.60540818,113780.0,113770.0,0.2186706]
[1754447712505,1.60540818,113780.0,113770.0,0.2246706]
[1754447714008,1.60540818,113780.0,113770.0,0.2286706]
[1754447715410,1.60540818,113780.0,113770.0,0.2246706]
[1754447715611,1.60540818,113780.0,113770.0,0.2266706]
[1754447717010,1.14603105,113780.0,113770.0,0.2266706]
[1754447717312,1.14603105,113780.0,113770.0,0.2276706]
[1754447717509,1.14603105,113780.0,113770.0,0.2615706]
[1754447719909,1.60540818,113780.0,113770.0,0.2615706]
[1754447720417,1.14603105,113780.0,113770.0,0.2615706]
[1754447720713,1.14603105,113780.0,113770.0,0.3088506]
[1754447724113,0.97024585,113780.0,113770.0,0.3088506]
[1754447724414,1.14603095,113780.0,113770.0,0.3088506]
[1754447726414,1.60540808,113780.0,113770.0,0.2115106]
[1754447726915,1.60540808,113780.0,113770.0,0.2137206]
[1754447730014,1.96620808,113780.0,113770.0,0.2137206]
[1754447731005,1.96620808,113780.0,113770.0,0.2599606]
[1754447731209,1.96620808,113780.0,113770.0,0.3057106]
[1754447732619,1.96620808,113780.0,113770.0,0.2137206]
[1754447735320,1.50683095,113780.0,113770.0,0.2457806]
[1754447735522,1.50683095,113780.0,113770.0,0.3057106]
[1754447736624,0.90603095,113780.0,113770.0,0.76508773]
[1754447736812,1.50659095,113780.0,113770.0,0.3057106]
[1754447742729,1.50659095,113780.0,113770.0,0.46401433]
[1754447743230,1.96596808,113780.0,113770.0,0.34710433]
[1754447743431,1.96596808,113780.0,113770.0,0.2137206]
[1754447745127,1.96596808,113780.0,113770.0,0.2107206]
[1754447745329,1.96596808,113780.0,113770.0,0.2127206]
[1754447746026,1.96596808,113780.0,113770.0,0.2107206]
[1754447746238,1.96596808,113780.0,113770.0,0.2137206]
[1754447746534,1.96596808,113780.0,113770.0,0.2037206]
[1754447746735,1.96596808,113780.0,113770.0,0.1798006]
[1754447747122,1.96596808,113780.0,113770.0,0.004]
[1754447747927,0.1758161,113760.0,113750.0,0.40300103]
[1754447748127,1.95803323,113760.0,113750.0,0.40300103]
[1754447749333,1.95803323,113760.0,113750.0,0.47296103]
[1754447750034,1.95803323,113760.0,113750.0,0.3146573]
[1754447750227,1.95803323,113760.0,113750.0,0.3019673]
[1754447750428,1.95803323,113760.0,113750.0,0.2456973]
[1754447750830,1.95803323,113760.0,113750.0,0.2466973]
[1754447752227,1.95803323,113760.0,113750.0,0.002]
[1754447752433,0.1758315,113750.0,113740.0,0.2637633]
[1754447752635,0.99600863,113750.0,113740.0,0.2884333]
[1754447753537,0.99600863,113750.0,113740.0,0.2904333]
[1754447753831,0.99600863,113750.0,113740.0,0.3392133]
[1754447754031,0.99600863,113750.0,113740.0,0.3863633]
[1754447757939,0.99600863,113750.0,113740.0,0.3167433]
[1754447759938,0.99600863,113750.0,113740.0,0.3493633]
[1754447760139,0.99600863,113750.0,113740.0,0.3863633]
[1754447761345,0.3608,113750.0,113740.0,0.84574043]
[1754447761541,1.1378716,113750.0,113740.0,0.84574043]
[1754447761740,1.1378716,113750.0,113740.0,0.3863633]
[1754447762541,1.59724873,113750.0,113740.0,0.3863633]
[1754447763245,1.1378716,113750.0,113740.0,0.3863633]
[1754447764765,1.59724873,113750.0,113740.0,0.3069333]
[1754447765263,1.59724873,113750.0,113740.0,0.3395533]
[1754447765465,1.59724873,113750.0,113740.0,0.3493633]
[1754447765664,1.59724873,113750.0,113740.0,0.3863633]
[1754447766166,1.59724873,113750.0,113740.0,0.3167433]
[1754447766662,1.59724873,113750.0,113740.0,0.2025105]
[1754447771778,1.59724873,113750.0,113740.0,0.002]
[1754447772271,1.59724873,113750.0,113740.0,0.02667]
[1754447772678,1.59724873,113750.0,113740.0,0.202517]
[1754447773673,1.59724873,113750.0,113740.0,0.02667]
[1754447776876,1.59724873,113750.0,113740.0,0.2025169]
[1754447777875,1.59724873,113750.0,113740.0,0.2839169]
[1754447778072,1.59724873,113750.0,113740.0,0.2984469]